[Event "FRA-ch Teams Top 16-A 2022"]
[Site "Chartres"]
[Date "2022.06.13"]
[Round "5.11"]
[White "Naiditsch, Arkadij"]
[Black "Lagarde, Maxime"]
[Result "1-0"]
[ECO "C00"]
[WhiteElo "2654"]
[BlackElo "2628"]
[Annotator "TA"]
[PlyCount "76"]
[EventDate "2022.06.09"]
[EventType "team-tourn"]
[EventCountry "FRA"]
[SourceTitle "playchess.com"]
[Source "ChessBase"]
[SourceQuality "1"]
[TimeControl "40/5400+30:1800+30"]

{[%evp 9,76,8,15,-4,1,3,3,-39,-28,-43,-40,-47,-47,-52,-51,-56,-48,-37,-51,-51,-36,-54,-51,-59,-69,-132,-140,-128,-111,-137,-114,-102,-96,-95,0,-7,93,79,85,76,83,88,60,84,86,26,100,79,77,26,44,45,91,100,89,23,27,0,0,0,18,16,78,82,103,0,0,0,1044]} 1. e4 {[%emt 0:01:14]} c5 {[%emt 0:00:05]} 2. Nf3 {[%emt 0:00:10]} e6 {[%emt 0:00:03]} 3. Qe2 {[%emt 0:03:31]} Nc6 {[%emt 0:04:44]} 4. g3 {[%emt 0:00:15]} Nf6 {[%emt 0:01:16]} 5. Bg2 {[%emt 0:00:40]} e5 {[%emt 0:03:16]} 6. c3 {[%emt 0:00:46] C00: French: Unusual White 2nd moves.} Be7 {[%emt 0:09:16]} 7. O-O {[%emt 0:08:59][%cal Od2d4]} O-O {[%emt 0:00:12]} 8. a3 $5 {[%emt 0:09:41][%mdl 4] [#] A promising side line.} d5 $146 {[%emt 0:03:42]} ({Predecessor:} 8... Re8 9. b4 d6 10. d3 h6 11. Nbd2 Be6 12. Bb2 Bf8 13. b5 Ne7 14. d4 Ng6 15. dxc5 dxc5 {1-0 (60) Zubov,A (2601)-Grachev,B (2652) Minsk 2015}) 9. d3 {[%emt 0:05:54]} d4 {[%emt 0:11:12]} 10. Nbd2 {[%emt 0:05:59]} Bg4 {[%emt 0:01:01]} 11. h3 {[%emt 0:01:10]} Be6 {[%emt 0:01:46]} 12. cxd4 {[%emt 0:13:33]} cxd4 {[%emt 0:03:39]} 13. Ng5 {[%emt 0:00:31]} Bc8 {[%emt 0:06:38]} 14. b4 {[%emt 0:03:21]} a6 {[%emt 0:05:17]} 15. Nb3 {[%emt 0:03:43]} h6 $36 {[%emt 0:03:01][%mdl 2048] Black has some pressure.} 16. Nf3 {[%emt 0:00:07][%cal Bg5f3,Bf3h4,Bh4f5][%mdl 32]} Be6 {[%emt 0:01:36]} 17. Nc5 {[%emt 0:03:35]} (17. Qd1 $15) 17... Bxc5 $17 {[%emt 0:02:00]} 18. bxc5 {[%emt 0:00:09]} Nd7 {[%emt 0:00:07]} 19. a4 {[%emt 0:00:29]} Nxc5 {[%emt 0:04:26]} 20. Ba3 {[%emt 0:00:55]} Qa5 {[%emt 0:07:28]} 21. Nh4 {[%emt 0:01:52]} Qc3 {[%emt 0:07:09]} (21... Rfc8 $17 22. Nf5 f6) 22. Nf5 $11 {[%emt 0:09:29]} Qxd3 {[%emt 0:07:04]} (22... Nb3 $11 {remains equal.} 23. Bxf8 Rxf8) 23. Qg4 $1 $16 {[%emt 0:01:53][%csl Gf5][%cal Rg4g7]} Bxf5 {[%emt 0:00:47]} 24. exf5 {[%emt 0:00:06]} Nd7 {[%emt 0:00:05] And now ...Nf6 would win.} 25. Rfd1 {[%emt 0:05:24]} Qc3 {[%emt 0:00:32]} 26. Bxf8 {[%emt 0:03:12]} Rxf8 {[%emt 0:00:11] [#]} 27. Rac1 {[%emt 0:01:57]} (27. Rdc1 $1 $16 {[%cal Rc1c3]} Qd2 28. Rab1 (28. Bxc6 Nf6 $14)) 27... Qa5 {[%emt 0:05:57]} (27... Qb3 $11 {keeps the balance.}) 28. Bxc6 {[%emt 0:02:05]} Nf6 {[%emt 0:00:08] [#]} 29. Qe2 {[%emt 0:06:53]} bxc6 $11 {[%emt 0:00:10]} 30. Rxc6 {[%emt 0:00:06]} Qxa4 {[%emt 0:00:33]} (30... Qd5 $14 {should be considered.} 31. Rxa6 Ne4) 31. Rxa6 $16 {[%emt 0:03:17] White is more active.} Qb3 {[%emt 0:00:03]} 32. Qd3 {[%emt 0:02:00]} (32. Rda1 $16) 32... Qd5 $11 {[%emt 0:01:26]} 33. Qa3 {[%emt 0:00:21]} Qe4 {[%emt 0:04:35]} 34. Qd3 {[%emt 0:00:03] Black should prevent Qxe4.} Qd5 {[%emt 0:00:58]} 35. Rb6 {[%emt 0:00:14]} Re8 {[%emt 0:02:38]} (35... e4 $11 36. Qxd4 Qxf5) 36. Qb5 {[%emt 0:01:04]} Qf3 {[%emt 0:00:04]} 37. Re1 {[%emt 0:02:31]} (37. Rc1 $16 {[%cal Ob6f6] Threatens to win with Rxf6!} Qa8 38. Rb1) 37... Re7 $1 {[%emt 0:03:13]} 38. Qc5 {[%emt 0:00:29]} d3 $2 {[%emt 0:02:24][%mdl 8192] Weighted Error Value: White=0.17 (very precise) /Black=0.21 (precise)} 1-0

[Event "FRA-ch Teams Top 16-A 2022"]
[Site "Chartres"]
[Date "2022.06.13"]
[Round "5.12"]
[White "Mamedov, Rauf"]
[Black "Fressinet, Laurent"]
[Result "1/2-1/2"]
[ECO "C77"]
[WhiteElo "2656"]
[BlackElo "2630"]
[Annotator "TA"]
[PlyCount "35"]
[EventDate "2022.06.09"]
[EventType "team-tourn"]
[EventCountry "FRA"]
[SourceTitle "playchess.com"]
[Source "ChessBase"]
[SourceQuality "1"]
[TimeControl "40/5400+30:1800+30"]

{[%evp 16,35,1,0,15,18,12,-5,10,5,6,0,0,0,0,0,0,-22,-4,-12,-5,-10]} 1. e4 {[%emt 0:00:11]} e5 {[%emt 0:00:32]} 2. Nf3 {[%emt 0:00:02]} Nc6 {[%emt 0:00:04]} 3. Bb5 {[%emt 0:00:03][%cal Bf1b5,Bb5a4,Ba4b3][%mdl 32]} a6 {[%emt 0:00:16]} 4. Ba4 {[%emt 0:00:03]} Nf6 {[%emt 0:00:05]} 5. Nc3 {[%emt 0:03:07]} Be7 {[%emt 0:01:26]} 6. d3 {[%emt 0:04:42]} b5 {[%emt 0:09:55]} 7. Bb3 {[%emt 0:00:21]} d6 {[%emt 0:01:56]} 8. a3 {[%emt 0:00:55]} O-O {[%emt 0:06:15]} 9. O-O $1 {[%emt 0:04:29] The position is equal. 9.0-0 scores better than 9.Nd5.} Na5 {[%emt 0:01:22] C77: Ruy Lopez: 3...a6 4 Ba4 Nf6, unusual lines.} 10. Ba2 {[%emt 0:00:31]} Be6 {[%emt 0:00:06]} 11. Bd2 {[%emt 0:07:12]} Bxa2 {[%emt 0:09:49]} 12. Rxa2 {[%emt 0:00:46]} c5 {[%emt 0:00:25] [#]} 13. b4 $5 $146 {[%emt 0:05:54][%mdl 8] New and interesting.} ({Predecessor:} 13. Nd5 Nc6 14. Nxe7+ Qxe7 15. Ra1 h6 16. Nh4 Qe6 17. h3 d5 18. exd5 Nxd5 19. Re1 {0-1 (56) Berg,E (2544)-Urkedal,F (2528) Chess.com INT 2020}) 13... Nc6 {[%emt 0:01:50][%cal Ba5c6,Bc6d4,Bd4f3][%mdl 32]} 14. Nd5 {[%emt 0:00:07]} Nxd5 {[%emt 0:04:39]} 15. exd5 {[%emt 0:00:46]} Nd4 {[%emt 0:00:03]} 16. Re1 {[%emt 0:14:50]} Rc8 {[%emt 0:06:20]} 17. a4 {[%emt 0:10:40]} Nxf3+ {[%emt 0:05:49]} 18. Qxf3 {[%emt 0:02:23] An uneventful encounter.  Weighted Error Value: White=0.07 (flawless) /Black=0.07 (flawless)} 1/2-1/2

[Event "FRA-ch Teams Top 16-A 2022"]
[Site "Chartres"]
[Date "2022.06.13"]
[Round "5.13"]
[White "Bellahcene, Bilel"]
[Black "Tiviakov, Sergei"]
[Result "0-1"]
[ECO "B01"]
[WhiteElo "2521"]
[BlackElo "2567"]
[Annotator "TA"]
[PlyCount "74"]
[EventDate "2022.06.09"]
[EventType "team-tourn"]
[EventCountry "FRA"]
[SourceTitle "playchess.com"]
[Source "ChessBase"]
[SourceQuality "1"]
[TimeControl "40/5400+30:1800+30"]

{[%evp 10,74,53,41,45,40,40,22,30,7,18,0,0,-5,-16,-48,-44,-42,-33,-122,-126,-121,-124,-117,-112,-113,-120,-160,-166,-147,-162,-160,-136,-145,-147,-228,-193,-214,-216,-217,-180,-156,-116,-115,-64,-178,-112,-258,-243,-292,-243,-232,-221,-292,-282,-302,-279,-286,-275,-265,-232,-302,-248,-254,-225,-306,-267]} 1. e4 {[%emt 0:04:42]} d5 {[%emt 0:00:06]} 2. exd5 {[%emt 0:00:04]} Qxd5 {[%emt 0:00:06]} 3. Nc3 {[%emt 0:00:01]} Qd6 {[%emt 0:00:07]} 4. d4 {[%emt 0:00:08]} Nf6 {[%emt 0:00:06]} 5. Nf3 {[%emt 0:00:08]} c6 {[%emt 0:00:04]} 6. Ne5 {[%emt 0:00:13]} Nbd7 {[%emt 0:00:06] B01: Scandinavian Defence.} 7. f4 {[%emt 0:01:13]} Nb6 {[%emt 0:03:14] 7...g6 is more advanced technology.} 8. Be3 {[%emt 0:38:14]} g6 {[%emt 0:00:52] The position is equal.} 9. Qf3 {[%emt 0:04:41] [#]} Bg7 $146 {[%emt 0:02:03]} ({Predecessor:} 9... Be6 10. Bd3 Nbd5 11. Nxd5 Bxd5 12. Qe2 Be4 13. O-O-O Bg7 14. h4 h5 15. Kb1 Bxd3 16. Qxd3 {0-1 (33) Milenkovic,M (2325)-Djordjevic,V (2381) Kragujevac 2015}) 10. O-O-O {[%emt 0:00:05]} Be6 {[%emt 0:01:30]} 11. Bd3 {[%emt 0:13:36]} Nbd5 {[%emt 0:08:39] Hoping for ...Nxc3.} 12. Nc4 {[%emt 0:03:13]} Qc7 {[%emt 0:09:16] Strongly threatening ...Bg4.} 13. Nxd5 {[%emt 0:00:51]} Nxd5 {[%emt 0:00:59][%cal Bf6d5,Bd5e3,Be3d1][%mdl 32]} 14. a3 {[%emt 0:14:29] [#] Prevents Nb4.} (14. Bd2 $15) 14... b5 $1 $17 {[%emt 0:04:36]} 15. Ne5 {[%emt 0:04:45]} Bxe5 {[%emt 0:03:46]} 16. fxe5 {[%emt 0:01:12] [#]} Bg4 $1 {[%emt 0:00:08][%mdl 512]} 17. Qxg4 {[%emt 0:00:06]} Nxe3 {[%emt 0:00:04]} 18. Qf3 {[%emt 0:00:42]} Nxd1 {[%emt 0:00:06]} 19. Rxd1 {[%emt 0:00:02]} O-O {[%emt 0:00:17]} 20. h4 {[%emt 0:02:23]} Rad8 {[%emt 0:01:40]} 21. Qe3 {[%emt 0:04:34][%cal Oh4h5]} c5 {[%emt 0:08:29][%cal Bc6c5,Bc5d4][%mdl 32]} 22. h5 {[%emt 0:01:55]} (22. dxc5 $17 {was called for.} Rd5 23. b4) 22... cxd4 {[%emt 0:09:44]} 23. Qg3 {[%emt 0:02:08][%cal Rh5g6]} Rd5 {[%emt 0:06:49]} 24. Re1 {[%emt 0:00:30][%cal Rh5g6]} Kg7 {[%emt 0:00:52]} 25. Qf4 {[%emt 0:00:41]} a6 {[%emt 0:04:12]} 26. Kb1 {[%emt 0:00:31]} Qb8 {[%emt 0:08:46]} (26... Qc5 $17 27. g4 Rdd8) 27. Qg5 {[%emt 0:02:01] [#]} (27. g4 $15) 27... Qd8 {[%emt 0:07:03]} (27... Qb6 $1 $19 28. Be4 Rdd8 29. hxg6 hxg6 30. Qxe7 (30. Rh1 $2 Rh8 $19) 30... Qe6) 28. Rh1 {[%emt 0:00:22] This move loses the game for White.} (28. hxg6 $17 hxg6 29. Be4 (29. Rh1 Rh8 $17)) 28... f6 $19 {[%emt 0:01:03]} 29. Qh4 {[%emt 0:00:54]} g5 {[%emt 0:00:49]} 30. exf6+ {[%emt 0:00:34]} exf6 {[%emt 0:00:32][%cal Be7f6,Bf6f5][%mdl 32]} 31. Qe4 {[%emt 0:00:28][%csl Gd3][%cal Re4h7]} f5 {[%emt 0:00:11]} 32. h6+ {[%emt 0:00:30]} Kh8 {[%emt 0:00:53]} 33. Qe6 {[%emt 0:00:30]} Rf6 {[%emt 0:02:31]} 34. Qe2 {[%emt 0:00:04]} Qf8 {[%emt 0:00:21]} 35. Qh5 {[%emt 0:00:59]} g4 {[%emt 0:00:37]} 36. Qg5 {[%emt 0:00:26]} Rdd6 {[%emt 0:01:58][%cal Rf6h6]} 37. Re1 {[%emt 0:00:32][%cal Oe1e8] Threatening mate with Re8!} Rde6 {[%emt 0:01:02] Against Re8.  Weighted Error Value: White=0.30/Black=0.16 (very precise)} 0-1

[Event "FRA-ch Teams Top 16-A 2022"]
[Site "Chartres"]
[Date "2022.06.13"]
[Round "5.14"]
[White "Maurizzi, Marc`Andria"]
[Black "Rodshtein, Maxim"]
[Result "1/2-1/2"]
[ECO "D85"]
[WhiteElo "2490"]
[BlackElo "2588"]
[Annotator "TA"]
[PlyCount "131"]
[EventDate "2022.06.09"]
[EventType "team-tourn"]
[EventCountry "FRA"]
[SourceTitle "playchess.com"]
[Source "ChessBase"]
[SourceQuality "1"]
[TimeControl "40/5400+30:1800+30"]

{[%evp 19,131,7,0,0,0,0,0,0,0,0,3,0,0,0,0,0,0,0,0,0,0,-2,0,0,0,0,0,0,0,-4,-4,-8,0,0,0,0,0,0,0,0,0,-42,-34,-35,-34,-34,-34,-41,-34,-34,-41,-34,0,-25,0,-37,-35,-71,-35,-37,-23,-67,0,0,0,0,0,0,0,0,0,0,0,0,0,0,-9,0,0,0,0,0,0,0,0,0,0,0,0,0,0,0,0,0,0,0,0,0,0,0,0,0,0,0,0,0,0,0,0,0,0,0,0,0]} 1. d4 {[%emt 0:00:22]} Nf6 {[%emt 0:00:33]} 2. c4 {[%emt 0:00:05]} g6 {[%emt 0:00:13]} 3. Nc3 {[%emt 0:00:03]} d5 {[%emt 0:00:06]} 4. cxd5 {[%emt 0:00:15]} Nxd5 {[%emt 0:00:05]} 5. e4 {[%emt 0:00:05]} Nxc3 {[%emt 0:00:05]} 6. bxc3 {[%emt 0:00:03]} Bg7 {[%emt 0:00:04]} 7. Nf3 {[%emt 0:00:03]} c5 {[%emt 0:00:14]} 8. Bb5+ {[%emt 0:00:04]} Nc6 {[%emt 0:02:32]} 9. O-O {[%emt 0:00:26]} O-O {[%emt 0:01:10]} 10. Bxc6 $1 {[%emt 0:00:09][%mdl 4] is now more promising than 10.Be3.} bxc6 {[%emt 0:00:05]} 11. Qc2 {[%emt 0:00:02] D85: Exchange Grünfeld: Unusual White 7th moves and lines with 7 Nf3.} cxd4 {[%emt 0:08:53]} 12. cxd4 {[%emt 0:00:04]} Bg4 {[%emt 0:00:08]} 13. Ne5 $1 {[%emt 0:00:03]} Qxd4 {[%emt 0:00:30]} 14. Bb2 {[%emt 0:00:02]} Qb6 {[%emt 0:00:40]} 15. Rab1 {[%emt 0:00:02]} Bxe5 {[%emt 0:01:04]} 16. Bxe5 {[%emt 0:00:03]} Qa5 {[%emt 0:00:28]} 17. Bc3 {[%emt 0:00:01]} Qc5 {[%emt 0:00:54]} 18. Qb2 {[%emt 0:00:13]} a5 {[%emt 0:07:50]} 19. Bd4 {[%emt 0:16:41]} Qd6 {[%emt 0:15:32] [#]} 20. h3 $146 {[%emt 0:18:08] [#]} ({Predecessor:} 20. Qc3 Be2 21. Rfe1 Bb5 22. a4 Bxa4 23. Bh8 f6 24. e5 Qd8 25. exf6 exf6 26. Rb7 {½-½ (34) Prohaszka,P (2573)-Ragger,M (2647) Terme Catez 2022}) 20... Be2 {[%emt 0:09:30]} 21. Rfe1 {[%emt 0:07:31]} (21. e5 Qd5) 21... Rfb8 {[%emt 0:11:43]} 22. Qc3 {[%emt 0:05:51]} Rxb1 {[%emt 0:00:50]} 23. Rxb1 {[%emt 0:00:13]} Bb5 {[%emt 0:01:00]} 24. Bc5 {[%emt 0:16:57]} Qe6 {[%emt 0:01:53]} 25. Rd1 {[%emt 0:09:21]} Qxe4 {[%emt 0:18:01]} 26. Rd7 {[%emt 0:08:32]} Re8 {[%emt 0:09:24]} 27. Qxa5 {[%emt 0:02:35]} f6 {[%emt 0:01:31]} 28. Qd2 {[%emt 0:09:16]} Kf7 {[%emt 0:02:32]} 29. Ra7 {[%emt 0:03:35]} g5 {[%emt 0:03:06]} 30. a4 {[%emt 0:01:31][%mdl 64] [#] Decoy} Bxa4 {[%emt 0:01:52]} 31. Qa2+ {[%emt 0:00:21]} Kg6 {[%emt 0:00:26]} 32. Bxe7 {[%emt 0:01:13]} ({Of course not} 32. Rxa4 Qe1+ 33. Kh2 Qe5+ 34. f4 Qxc5 35. fxg5 Qd6+ 36. Kg1 (36. g3 fxg5 37. Ra6 Rc8 $17) 36... Qd1+ 37. Kh2 Qd6+ 38. Kg1 (38. g3 fxg5 39. Qe2 Rf8 $17) 38... f5 $17) 32... Rxe7 {[%emt 0:02:20]} 33. Rxa4 $15 {[%emt 0:00:59][%mdl 4096] Endgame KQR-KQR} Qe1+ {[%emt 0:00:56]} 34. Kh2 {[%emt 0:00:02]} Qe5+ {[%emt 0:00:11]} 35. Kg1 {[%emt 0:01:48]} Qe1+ {[%emt 0:00:15]} 36. Kh2 {[%emt 0:00:01]} Qe5+ {[%emt 0:00:20]} 37. Kg1 {[%emt 0:00:50]} Qd5 {[%emt 0:00:13]} 38. Qb1+ {[%emt 0:00:44]} Qf5 {[%emt 0:01:41]} 39. Qd1 {[%emt 0:01:13]} c5 {[%emt 0:00:35]} 40. Rc4 {[%emt 0:00:27]} ({Reject} 40. g4 Qd7 41. Qxd7 (41. Qc2+ Kg7 $17) 41... Rxd7 $17) 40... Re4 {[%emt 0:00:33]} (40... h5 $15) 41. Qd8 $11 {[%emt 0:11:01] The position is equal.} Rxc4 {[%emt 0:12:30]} 42. Qg8+ {[%emt 0:00:55]} Kh6 {[%emt 0:00:04]} 43. Qf8+ {[%emt 0:00:26]} Kh5 {[%emt 0:00:45] ( -> ...Rc1+)} 44. Qf7+ {[%emt 0:00:05]} Qg6 {[%emt 0:00:33]} 45. Qxc4 {[%emt 0:00:16] KQ-KQ} Qb1+ {[%emt 0:00:06]} 46. Kh2 {[%emt 0:00:11]} Qb8+ {[%emt 0:00:15]} 47. Kg1 {[%emt 0:00:38] White wants to mate with Qf7+.} Qf8 {[%emt 0:01:25] Prevents Qf7+.} 48. f4 {[%emt 0:04:53]} Qe7 {[%emt 0:03:31] ...Qe3+ is the strong threat.} 49. fxg5 $1 {[%emt 0:04:27]} fxg5 {[%emt 0:00:29]} 50. Qg8 {[%emt 0:01:27]} Kh6 {[%emt 0:04:40]} 51. g4 {[%emt 0:03:54]} Qe3+ {[%emt 0:02:28]} 52. Kg2 {[%emt 0:00:39]} Qe4+ {[%emt 0:00:08]} 53. Kg1 {[%emt 0:00:12]} c4 {[%emt 0:02:52]} 54. Qf7 {[%emt 0:03:28]} Qd4+ {[%emt 0:07:05]} 55. Kg2 {[%emt 0:00:11]} Qd2+ {[%emt 0:00:14]} 56. Kg1 {[%emt 0:00:11][%cal Rf7f6]} Qf4 {[%emt 0:00:38] Against Qf6+} 57. Qe6+ {[%emt 0:01:03]} Kg7 {[%emt 0:00:05] White must now prevent ...Qc7.} 58. Qe7+ {[%emt 0:00:28]} Kg8 {[%emt 0:00:13]} 59. Qe8+ {[%emt 0:02:15]} Qf8 {[%emt 0:00:10]} 60. Qe5 {[%emt 0:00:40]} h6 {[%emt 0:01:44]} 61. Qe6+ {[%emt 0:00:46]} Qf7 {[%emt 0:00:33]} 62. Qxh6 {[%emt 0:00:30]} Qf4 {[%emt 0:00:14] Threatens to win with ...Kf7.} 63. Qe6+ {[%emt 0:01:44]} Kf8 {[%emt 0:00:09]} 64. Qc8+ {[%emt 0:00:08]} Ke7 {[%emt 0:00:07]} 65. Qc5+ {[%emt 0:00:04]} Kd7 {[%emt 0:01:14] And now ...Qg3+ would win.} (65... Ke6 $5 66. Qc6+ Ke5 67. Qc5+ Kf6 68. Qc6+ Ke7 69. Qc5+ Kf7 70. Qd5+ Kg6 $11) 66. Qd5+ {[%emt 0:00:32] Weighted Error Value: White=0.02 (flawless) /Black=0.03 (flawless)} 1/2-1/2

[Event "FRA-ch Teams Top 16-A 2022"]
[Site "Chartres"]
[Date "2022.06.13"]
[Round "5.15"]
[White "Maze, Sebastien"]
[Black "Guliyev, Namig"]
[Result "1/2-1/2"]
[ECO "B50"]
[WhiteElo "2519"]
[BlackElo "2547"]
[Annotator "TA"]
[PlyCount "26"]
[EventDate "2022.06.09"]
[EventType "team-tourn"]
[EventCountry "FRA"]
[SourceTitle "playchess.com"]
[Source "ChessBase"]
[SourceQuality "1"]
[TimeControl "40/5400+30:1800+30"]

{[%evp 9,26,0,30,23,27,32,31,16,15,0,0,0,0,-4,2,0,12,11,18]} 1. e4 {[%emt 0:00:12]} c5 {[%emt 0:02:42]} 2. Nf3 {[%emt 0:01:23]} d6 {[%emt 0:00:08]} 3. Nc3 {[%emt 0:00:59]} Nf6 {[%emt 0:00:19]} 4. e5 {[%emt 0:00:12]} dxe5 {[%emt 0:00:31]} 5. Nxe5 {[%emt 0:00:51]} Nbd7 {[%emt 0:00:12]} 6. d4 {[%emt 0:00:42] B50: Sicilian: 2...d6, Miscellaneous.} e6 {[%emt 0:04:55]} 7. Bf4 {[%emt 0:11:38]} cxd4 {[%emt 0:09:29]} 8. Qxd4 {[%emt 0:00:13] White is slightly better.} Bc5 {[%emt 0:00:06] The position is equal.} 9. Qa4 {[%emt 0:06:00]} O-O {[%emt 0:00:24][%cal Oc5f2]} 10. O-O-O {[%emt 0:01:33] [#] And now Bb5 would win.} Qe7 $1 {[%emt 0:00:58] [#]} 11. Bg3 $146 {[%emt 0:11:45]} ({Predecessor:} 11. g4 Nb6 12. Qb3 Nfd5 13. Bg3 Bxf2 14. Bxf2 Qg5+ 15. Kb1 Qxe5 16. Bd4 Qc7 17. Nb5 {1-0 (35) Willow,J (2102)-Clarke,B (2380) London 2019}) 11... Nxe5 {[%emt 0:22:05]} 12. Bxe5 {[%emt 0:00:51]} Nd7 {[%emt 0:00:35]} 13. Bg3 {[%emt 0:01:25]} f5 {[%emt 0:05:19] Against Ne4. A balanced but interesting game.  Weighted Error Value: White=0.03 (flawless) /Black=0.06 (flawless)} 1/2-1/2

[Event "FRA-ch Teams Top 16-A 2022"]
[Site "Chartres"]
[Date "2022.06.13"]
[Round "5.16"]
[White "Martsynovskaya, Marina"]
[Black "Sebag, Marie"]
[Result "0-1"]
[ECO "B90"]
[WhiteElo "2070"]
[BlackElo "2472"]
[Annotator "TA"]
[PlyCount "62"]
[EventDate "2022.06.09"]
[EventType "team-tourn"]
[EventCountry "FRA"]
[SourceTitle "playchess.com"]
[Source "ChessBase"]
[SourceQuality "1"]
[TimeControl "40/5400+30:1800+30"]

{[%evp 13,62,23,19,12,16,10,16,0,0,-42,-57,-95,-93,-88,-92,-121,-126,-135,-122,-231,-195,-283,-274,-414,-404,-517,-223,-212,-225,-231,-224,-493,-487,-756,-720,-1112,-1043,-1179,-1176,-1172,-1166,-1118,-1088,-1079,-1059,-12837,-12835,-5247,-1070,-860,-831]} 1. e4 {[%emt 0:00:02]} c5 {[%emt 0:04:41]} 2. Nf3 {[%emt 0:00:08]} d6 {[%emt 0:00:07]} 3. d4 {[%emt 0:00:07]} cxd4 {[%emt 0:00:09]} 4. Nxd4 {[%emt 0:00:04]} Nf6 {[%emt 0:00:05]} 5. Nc3 {[%emt 0:00:15]} a6 {[%emt 0:00:05]} 6. Be3 {[%emt 0:00:14]} e5 {[%emt 0:00:47]} 7. Nb3 {[%emt 0:00:11]} Be6 {[%emt 0:02:07]} 8. h3 {[%emt 0:00:47] B90: Sicilian Najdorf: Unusual White 6th moves, 6 Be3 Ng4 and 6 Be3 e5.} Nbd7 {[%emt 0:12:40]} 9. g4 {[%emt 0:02:20]} h6 {[%emt 0:03:07]} 10. Bg2 {[%emt 0:04:36] [#] The position is equal.} Nb6 $146 {[%emt 0:08:33]} ({Predecessor:} 10... Rc8 11. O-O Be7 12. a4 O-O 13. a5 Nh7 14. Qd2 Rc6 15. Rfc1 Bg5 16. Nd5 Bxe3 17. Nxe3 {0-1 (56) Gutenev,A (2456)-Indjic,A (2604) Sochi 2018}) 11. Bxb6 {[%emt 0:10:13]} Qxb6 {[%emt 0:00:09]} 12. Nd5 {[%emt 0:00:12]} Nxd5 {[%emt 0:04:40]} 13. exd5 {[%emt 0:00:06]} Bd7 {[%emt 0:00:06]} 14. Qd2 {[%emt 0:14:37]} Be7 {[%emt 0:01:01]} 15. Qa5 {[%emt 0:07:58]} Qa7 {[%emt 0:05:40] Black is more active.} 16. a4 {[%emt 0:12:14]} (16. Be4 $17) 16... Rc8 {[%emt 0:03:53] aiming for ...f5.} 17. Be4 {[%emt 0:00:23]} (17. Qd2 {was called for.}) 17... O-O {[%emt 0:21:41]} 18. Nd2 {[%emt 0:23:30]} (18. Qd2 {might work better.}) 18... Bh4 $19 {[%emt 0:29:59] [#] White must now prevent ...f5.} 19. O-O-O {[%emt 0:04:17]} Bxf2 {[%emt 0:00:00]} (19... Qd4 $142 20. c3 Bd8) 20. Qb4 {[%emt 0:00:43]} Bc5 {[%emt 0:01:00]} 21. Qb3 b5 {[%emt 0:00:00]} 22. Qg3 $2 {[%emt 0:00:41] [#]} (22. a5) 22... bxa4 {[%emt 0:01:00] Black is clearly winning.} 23. g5 (23. Rde1 $142) 23... hxg5 {[%emt 0:00:00]} 24. Qxg5 {[%emt 0:07:29]} f5 25. Rhg1 {[%emt 0:11:53]} Bxg1 {[%emt 0:00:00]} 26. Rxg1 {[%emt 0:00:00]} Bb5 27. Bf3 {[%emt 0:00:00]} a3 28. bxa3 {[%emt 0:00:00]} e4 29. Nxe4 {[%emt 0:02:00]} fxe4 {[%emt 0:00:00]} 30. Bxe4 {[%emt 0:00:00]} Qxg1+ {[%emt 0:00:00]} 31. Qxg1 {[%emt 0:00:00]} Rf1+ {[%emt 0:00:00] White got outplayed after the opening.  Weighted Error Value: White=1.14/Black=0.34} 0-1